fUSD/lending_fUSD_20240109
["ID","MTS","AMOUNT","RATE_DAILY","PERIOD"]
[310892073,1704797457024,-500.0,0.00043835,30]
[310892074,1704797457046,-500.0,0.00043835,30]
[310892075,1704797457069,-368.45294516,0.00043835,30]
[310892076,1704797457091,-500.0,0.00043835,30]
[310892077,1704797457113,-500.0,0.00043835,30]
[310892078,1704797457138,-500.0,0.00043835,30]
[310892079,1704797457162,-560.74225676,0.00043835,30]
[310892080,1704797457185,-500.0,0.00043835,30]
[310892081,1704797457207,-522.73055793,0.00043835,30]
[310892082,1704797457230,-691.32,0.00043835,30]
[310892083,1704797457252,-544.17,0.00043835,30]
[310892084,1704797457278,-500.0,0.00043835,30]
[310892085,1704797457301,-500.0,0.00043835,30]
[310892086,1704797457324,-500.0,0.00043835,30]
[310892087,1704797457347,-642.45682302,0.00043835,30]
[310892088,1704797457373,-500.0,0.00043835,30]
[310892089,1704797457396,-500.0,0.00043835,30]
[310892090,1704797457419,-1479.09,0.00043835,30]
[310892091,1704797457443,-500.0,0.00043835,30]
[310892092,1704797457470,-500.0,0.00043835,30]
[310892093,1704797457493,-500.0,0.00043835,30]
[310892094,1704797457517,-500.0,0.00043835,30]
[310892095,1704797457541,-500.0,0.00043835,30]
[310892096,1704797457571,-500.0,0.00043835,30]
[310892097,1704797457594,-500.0,0.00043835,30]
[310892098,1704797457618,-529.53,0.00043835,30]
[310892099,1704797457643,-500.0,0.00043835,30]
[310892100,1704797457667,-500.0,0.00043835,30]
[310892101,1704797457689,-545.31,0.00043835,30]
[310892102,1704797457712,-500.0,0.00043835,30]
[310892103,1704797457735,-500.0,0.00043835,30]
[310892104,1704797457758,-213.27385876,0.00043835,30]
[310892105,1704797457782,-500.0,0.00043835,30]
[310892106,1704797457805,-500.0,0.00043835,30]
[310892107,1704797457828,-500.0,0.00043835,30]
[310892108,1704797457850,-500.0,0.00043835,30]
[310892109,1704797457875,-1570.59,0.00043835,30]
[310892110,1704797457899,-500.0,0.00043835,30]
[310892111,1704797457922,-501.7785417,0.00043835,30]
[310892112,1704797457946,-503.82,0.00043835,30]
[310892113,1704797457970,-500.0,0.00043835,30]
[310892114,1704797457996,-500.0,0.00043835,30]
[310892115,1704797458020,-500.0,0.00043835,30]
[310892116,1704797458301,-500.0,0.00043835,30]
[310892117,1704797458326,-500.0,0.00043835,30]
[310892118,1704797458349,-500.0,0.00043835,30]
[310892119,1704797458373,-500.0,0.00043835,30]
[310892120,1704797458397,-500.0,0.00043835,30]
[310892121,1704797458421,-500.0,0.00043835,30]
[310892122,1704797458444,-500.0,0.00043835,30]
[310892123,1704797458468,-508.69607498,0.00043835,30]
[310892124,1704797458491,-504.98115276,0.00043835,30]
[310892125,1704797458514,-500.0,0.00043835,30]
[310892126,1704797458540,-503.47854946,0.00043835,30]
[310892127,1704797458563,-500.0,0.00043835,30]
[310892128,1704797458586,-500.0,0.00043835,30]
[310892129,1704797458609,-500.0,0.00043835,30]
[310892130,1704797458632,-504.49333968,0.00043835,30]
[310892131,1704797458657,-962.18,0.00043835,30]
[310892132,1704797458680,-500.0,0.00043835,30]
[310892133,1704797458703,-532.04705019,0.00043835,30]
[310892134,1704797458726,-196.75649352,0.00043835,30]
[310892135,1704797458749,-500.0,0.00043835,30]
[310892136,1704797458771,-500.0,0.00043835,30]
[310892137,1704797458793,-500.0,0.00043835,30]
[310892138,1704797458816,-500.0,0.00043835,30]
[310892139,1704797458839,-500.0,0.00043835,30]
[310892140,1704797458861,-500.0,0.00043835,30]
[310892141,1704797458886,-500.0,0.00043835,30]
[310892142,1704797458909,-500.0,0.00043835,30]
[310892143,1704797458932,-1259.52,0.00043835,30]
[310892144,1704797458955,-500.0,0.00043835,30]
[310892145,1704797458980,-500.0,0.00043835,30]
[310892146,1704797459003,-500.0,0.00043835,30]
[310892147,1704797459025,-500.0,0.00043835,30]
[310892148,1704797459048,-500.0,0.00043835,30]
[310892149,1704797459071,-749.44,0.00043835,30]
[310892150,1704797459118,-500.0,0.00043835,30]
[310892151,1704797459142,-500.0,0.00043835,30]
[310892152,1704797459165,-500.0,0.00043835,30]
[310892153,1704797459190,-500.0,0.00043835,30]
[310892154,1704797459212,-324.62145591,0.00043835,30]
[310892155,1704797459234,-962.92,0.00043835,30]
[310892156,1704797459261,-500.0,0.00043835,30]
[310892157,1704797459284,-500.0,0.00043835,30]
[310892158,1704797459307,-555.62,0.00043835,30]
[310892159,1704797459328,-500.0,0.00043835,30]
[310892160,1704797459359,-500.0,0.00043835,30]
[310892161,1704797459382,-500.0,0.00043835,30]
[310892162,1704797459405,-500.0,0.00043835,30]
[310892163,1704797459429,-500.0,0.00043835,30]
[310892164,1704797459453,-500.0,0.00043835,30]
[310892165,1704797459476,-500.0,0.00043835,30]
[310892166,1704797459500,-500.0,0.00043835,30]
[310892167,1704797459522,-1374.4,0.00043835,30]
[310892168,1704797459546,-500.0,0.00043835,30]
[310892169,1704797459569,-500.0,0.00043835,30]
[310892170,1704797459593,-500.0,0.00043835,30]
[310892171,1704797459616,-500.0,0.00043835,30]
[310892172,1704797459646,-500.0,0.00043835,30]
[310892173,1704797459668,-500.0,0.00043835,30]
[310892174,1704797459691,-500.0,0.00043835,30]
[310892175,1704797459713,-500.0,0.00043835,30]
[310892176,1704797459735,-500.0,0.00043835,30]
[310892177,1704797459757,-571.91,0.00043835,30]
[310892178,1704797459781,-500.0,0.00043835,30]
[310892179,1704797459803,-500.0,0.00043835,30]
[310892180,1704797459825,-500.0,0.00043835,30]
[310892181,1704797459848,-500.0,0.00043835,30]
[310892182,1704797459871,-500.0,0.00043835,30]
[310892183,1704797459895,-500.0,0.00043835,30]
[310892184,1704797459919,-500.0,0.00043835,30]
[310892185,1704797459941,-500.0,0.00043835,30]
[310892186,1704797459963,-428.43704151,0.00043835,30]
[310892187,1704797459986,-507.02,0.00043835,30]
[310892188,1704797460009,-500.0,0.00043835,30]
[310892189,1704797460033,-500.0,0.00043835,30]
[310892190,1704797460056,-823.82,0.00043835,30]
[310892191,1704797460081,-503.86188924,0.00043835,30]
[310892192,1704797460104,-500.0,0.00043835,30]
[310892193,1704797460129,-500.0,0.00043835,30]
[310892194,1704797460152,-500.0,0.00043835,30]
[310892195,1704797460176,-500.0,0.00043835,30]
[310892196,1704797460199,-511.2558733,0.00043835,30]
[310892197,1704797460222,-500.0,0.00043835,30]
[310892198,1704797460246,-500.0,0.00043835,30]
[310892199,1704797460270,-750.47,0.00043835,30]
[310892200,1704797460294,-505.72697682,0.00043835,30]
[310892201,1704797460318,-500.0,0.00043835,30]
[310892202,1704797460342,-500.0,0.00043835,30]
[310892203,1704797460365,-500.0,0.00043835,30]
[310892204,1704797460390,-600.01,0.00043835,30]
[310892205,1704797460413,-503.88461747,0.00043835,30]
[310892206,1704797460437,-500.0,0.00043835,30]
[310892207,1704797460459,-500.0,0.00043835,30]
[310892208,1704797460482,-500.0,0.00043835,30]
[310892209,1704797460506,-1292.04,0.00043835,30]
[310892210,1704797460528,-500.0,0.00043835,30]
[310892211,1704797460551,-1936.56,0.00043835,30]
[310892212,1704797460573,-500.0,0.00043835,30]
[310892213,1704797460596,-500.0,0.00043835,30]
[310892214,1704797460620,-613.0,0.00043835,30]
[310892215,1704797460651,-500.0,0.00043835,30]
[310892216,1704797460674,-535.25,0.00043835,30]
[310892217,1704797460699,-500.0,0.00043835,30]
[310892218,1704797460726,-535.18646012,0.00043835,30]
[310892219,1704797460750,-1309.23,0.00043835,30]
[310892220,1704797460774,-500.0,0.00043835,30]
[310892221,1704797461032,-500.0,0.00043835,30]
[310892222,1704797461060,-1304.9,0.00043835,30]
[310892223,1704797461086,-848.7,0.00043835,30]
[310892224,1704797461112,-500.0,0.00043835,30]
[310892225,1704797461142,-549.18624326,0.00043835,30]
[310892226,1704797461167,-500.0,0.00043835,30]
[310892227,1704797461191,-500.0,0.00043835,30]
[310892228,1704797461214,-500.0,0.00043835,30]
[310892229,1704797461238,-928.1,0.00043835,30]
[310892230,1704797461263,-500.0,0.00043835,30]
[310892231,1704797461286,-500.0,0.00043835,30]
[310892232,1704797461310,-757.85,0.00043835,30]
[310892233,1704797461332,-500.0,0.00043835,30]
[310892234,1704797461354,-500.0,0.00043835,30]
[310892235,1704797461380,-500.0,0.00043835,30]
[310892236,1704797461403,-500.0,0.00043835,30]
[310892237,1704797461425,-500.0,0.00043835,30]
[310892238,1704797461448,-628.45,0.00043835,30]
[310892239,1704797461472,-500.0,0.00043835,30]
[310892240,1704797461496,-508.84422566,0.00043835,30]
[310892241,1704797461519,-500.0,0.00043835,30]
[310892242,1704797461543,-524.45,0.00043835,30]
[310892243,1704797461566,-509.69,0.00043835,30]
[310892244,1704797461588,-508.13,0.00043835,30]
[310892245,1704797461610,-500.0,0.00043835,30]
[310892246,1704797461635,-500.0,0.00043835,30]
[310892247,1704797461658,-584.46,0.00043835,30]
[310892248,1704797461680,-501.35888888,0.00043835,30]
[310892249,1704797461703,-500.0,0.00043835,30]
[310892250,1704797461726,-725.75,0.00043835,30]
[310892251,1704797461748,-653.49,0.00043835,30]
[310892252,1704797461771,-527.15,0.00043835,30]
[310892253,1704797461794,-1765.46,0.00043835,30]
[310892254,1704797461817,-788.42,0.00043835,30]
[310892255,1704797461845,-500.0,0.00043835,30]
[310892256,1704797461868,-1028.98,0.00043835,30]
[310892257,1704797461892,-500.0,0.00043835,30]
[310892258,1704797461921,-500.0,0.00043835,30]
[310892259,1704797461949,-500.0,0.00043835,30]
[310892260,1704797461971,-500.0,0.00043835,30]
[310892261,1704797461995,-500.0,0.00043835,30]
[310892262,1704797462030,-1024.01,0.00043835,30]
[310892263,1704797462053,-629.53,0.00043835,30]
[310892264,1704797462076,-521.34956123,0.00043835,30]
[310892265,1704797462098,-500.0,0.00043835,30]
[310892266,1704797462120,-515.54748984,0.00043835,30]
[310892267,1704797462145,-500.0,0.00043835,30]
[310892268,1704797462168,-998.36,0.00043835,30]
[310892269,1704797462191,-500.0,0.00043835,30]
[310892270,1704797462215,-503.87742034,0.00043835,30]
[310892271,1704797462237,-500.0,0.00043835,30]
[310892272,1704797462260,-830.95,0.00043835,30]
[310892273,1704797462283,-1226.5,0.00043835,30]
[310892274,1704797462306,-500.0,0.00043835,30]
[310892275,1704797462328,-500.0,0.00043835,30]
[310892276,1704797462350,-500.0,0.00043835,30]
[310892277,1704797462372,-500.0,0.00043835,30]
[310892278,1704797462395,-545.41,0.00043835,30]
[310892279,1704797462417,-596.39522974,0.00043835,30]
[310892280,1704797462441,-671.39,0.00043835,30]
[310892281,1704797462464,-500.0,0.00043835,30]
[310892282,1704797462487,-500.0,0.00043835,30]
[310892283,1704797462516,-500.0,0.00043835,30]
[310892284,1704797462538,-644.85,0.00043835,30]
[310892285,1704797462561,-500.0,0.00043835,30]
[310892286,1704797462583,-500.0,0.00043835,30]
[310892287,1704797462608,-500.0,0.00043835,30]
[310892288,1704797462636,-885.37,0.00043835,30]
[310892289,1704797462661,-1108.44,0.00043835,30]
[310892290,1704797462684,-1630.24,0.00043835,30]
[310892291,1704797462708,-588.47,0.00043835,30]
[310892292,1704797462733,-500.0,0.00043835,30]
[310892293,1704797462756,-500.0,0.00043835,30]
[310892294,1704797462780,-1408.52,0.00043835,30]
[310892295,1704797462802,-274.64957235,0.00043835,30]
[310892296,1704797462825,-500.0,0.00043835,30]
[310892297,1704797462846,-500.0,0.00043835,30]
[310892298,1704797462869,-508.45564929,0.00043835,30]
[310892299,1704797462894,-565.28,0.00043835,30]
[310892300,1704797462918,-500.0,0.00043835,30]
[310892301,1704797462942,-881.61,0.00043835,30]
[310892302,1704797462966,-1153.03,0.00043835,30]
[310892303,1704797462991,-978.76,0.00043835,30]
[310892304,1704797463014,-500.0,0.00043835,30]
[310892305,1704797463037,-500.0,0.00043835,30]
[310892306,1704797463060,-500.0,0.00043835,30]
[310892307,1704797463083,-500.0,0.00043835,30]
[310892308,1704797463107,-507.05094895,0.00043835,30]
[310892309,1704797463135,-690.16,0.00043835,30]
[310892310,1704797463159,-500.0,0.00043835,30]
[310892311,1704797463182,-500.0,0.00043835,30]
[310892312,1704797463206,-2213.24,0.00043835,30]
[310892313,1704797463229,-500.0,0.00043835,30]
[310892314,1704797463252,-891.61,0.00043835,30]
[310892315,1704797463275,-748.2,0.00043835,30]
[310892316,1704797463299,-819.84,0.00043835,30]
[310892317,1704797463322,-500.0,0.00043835,30]
[310892318,1704797463354,-500.0,0.00043835,30]
[310892319,1704797463383,-500.0,0.00043835,30]
[310892320,1704797463408,-500.0,0.00043835,30]
[310892321,1704797463432,-967.91,0.00043835,30]
[310892322,1704797463454,-500.0,0.00043835,30]
[310892323,1704797463476,-500.0,0.00043835,30]
[310892324,1704797463499,-759.26,0.00043835,30]
[310892325,1704797463523,-500.0,0.00043835,30]
[310892326,1704797463815,-1622.68,0.00043835,30]
[310892327,1704797463839,-704.66,0.00043835,30]
[310892328,1704797463864,-1229.14,0.00043835,30]
[310892329,1704797463890,-500.0,0.00043835,30]
[310892330,1704797463913,-500.0,0.00043835,30]
[310892331,1704797463936,-500.0,0.00043835,30]
[310892332,1704797463960,-1133.17,0.00043835,30]
[310892333,1704797463983,-500.0,0.00043835,30]
[310892334,1704797464008,-500.0,0.00043835,30]
[310892335,1704797464033,-500.0,0.00043835,30]
[310892336,1704797464058,-2010.3,0.00043835,30]
[310892337,1704797464081,-500.0,0.00043835,30]
[310892338,1704797464106,-892.44,0.00043835,30]
[310892339,1704797464132,-500.0,0.00043835,30]
[310892340,1704797464154,-1675.35,0.00043835,30]
[310892341,1704797464185,-1391.07,0.00043835,30]
[310892342,1704797464209,-500.0,0.00043835,30]
[310892343,1704797464233,-846.63,0.00043835,30]
[310892344,1704797464255,-500.0,0.00043835,30]
[310892345,1704797464278,-1234.41,0.00043835,30]
[310892346,1704797464301,-500.0,0.00043835,30]
[310892347,1704797464325,-1487.89,0.00043835,30]
[310892348,1704797464349,-500.0,0.00043835,30]
[310892349,1704797464376,-500.0,0.00043835,30]
[310892350,1704797464398,-545.46,0.00043835,30]
[310892351,1704797464420,-500.0,0.00043835,30]
[310892352,1704797464443,-1091.45,0.00043835,30]
[310892353,1704797464466,-530.49625507,0.00043835,30]
[310892354,1704797464489,-631.06,0.00043835,30]
[310892355,1704797464512,-500.0,0.00043835,30]
[310892356,1704797464537,-1372.49,0.00043835,30]
[310892357,1704797464561,-500.0,0.00043835,30]
[310892358,1704797464584,-500.0,0.00043835,30]
[310892359,1704797464606,-504.87,0.00043835,30]
[310892360,1704797464634,-500.0,0.00043835,30]
[310892361,1704797464657,-500.0,0.00043835,30]
[310892362,1704797464681,-1014.94,0.00043835,30]
[310892363,1704797464704,-852.92,0.00043835,30]
[310892364,1704797464731,-500.0,0.00043835,30]
[310892365,1704797464753,-685.05,0.00043835,30]
[310892366,1704797464776,-500.0,0.00043835,30]
[310892367,1704797464799,-500.0,0.00043835,30]
[310892368,1704797464821,-2182.94,0.00043835,30]
[310892369,1704797464844,-500.0,0.00043835,30]
[310892370,1704797464866,-500.0,0.00043835,30]
[310892371,1704797464889,-808.17,0.00043835,30]
[310892372,1704797464913,-500.0,0.00043835,30]
[310892373,1704797464936,-500.0,0.00043835,30]
[310892374,1704797464959,-2711.83,0.00043835,30]
[310892375,1704797464982,-502.89847508,0.00043835,30]
[310892376,1704797465005,-1456.49,0.00043835,30]
[310892377,1704797465029,-500.0,0.00043835,30]
[310892378,1704797465071,-500.0,0.00043835,30]
[310892379,1704797465097,-943.69,0.00043835,30]
[310892380,1704797465124,-943.69,0.00043835,30]
[310892381,1704797465153,-943.69,0.00043835,30]
[310892382,1704797465179,-943.69,0.00043835,30]
[310892383,1704797465204,-500.0,0.00043835,30]
[310892384,1704797465228,-943.69,0.00043835,30]
[310892385,1704797465253,-943.69,0.00043835,30]
[310892386,1704797465279,-943.69,0.00043835,30]
[310892387,1704797465303,-943.69,0.00043835,30]
[310892388,1704797465328,-943.69,0.00043835,30]
[310892389,1704797465353,-943.69,0.00043835,30]
[310892390,1704797465380,-943.69,0.00043835,30]
[310892391,1704797465404,-572.29,0.00043835,30]
[310892392,1704797465427,-943.69,0.00043835,30]
[310892393,1704797465458,-943.69,0.00043835,30]
[310892394,1704797465482,-500.0,0.00043835,30]
[310892395,1704797465505,-943.69,0.00043835,30]
[310892396,1704797465531,-943.69,0.00043835,30]
[310892397,1704797465555,-500.0,0.00043835,30]
[310892398,1704797465580,-943.69,0.00043835,30]
[310892399,1704797465603,-943.69,0.00043835,30]
[310892400,1704797465629,-943.69,0.00043835,30]
[310892401,1704797465653,-943.69,0.00043835,30]
[310892402,1704797465677,-851.97,0.00043835,30]
[310892403,1704797465701,-943.69,0.00043835,30]
[310892404,1704797465726,-736.76,0.00043835,30]
[310892405,1704797465749,-943.69,0.00043835,30]
[310892406,1704797465771,-943.69,0.00043835,30]
[310892407,1704797465795,-943.69,0.00043835,30]
[310892408,1704797465819,-1643.43,0.00043835,30]
[310892409,1704797465842,-500.0,0.00043835,30]
[310892410,1704797465870,-943.91389332,0.00043835,30]
[310892411,1704797465897,-1001.63,0.00043835,30]
[310892412,1704797465921,-756.33,0.00043835,30]
[310892413,1704797465945,-2147.66,0.00043835,30]
[310892414,1704797465969,-500.0,0.00043835,30]
[310892415,1704797465993,-500.0,0.00043835,30]
[310892416,1704797466017,-500.0,0.00043835,30]
[310892417,1704797466043,-1475.94,0.00043835,30]
[310892418,1704797466067,-1005.05,0.00043835,30]
[310892419,1704797466092,-500.0,0.00043835,30]
[310892420,1704797466118,-500.0,0.00043835,30]
[310892421,1704797466146,-2446.24,0.00043835,30]
[310892422,1704797466172,-1000.0,0.00043835,30]
[310892423,1704797466197,-500.0,0.00043835,30]
[310892424,1704797466220,-500.0,0.00043835,30]
[310892425,1704797466248,-417.8785992,0.00043835,30]
[310892426,1704797466272,-500.0,0.00043835,30]
[310892427,1704797466295,-500.0,0.00043835,30]
[310892428,1704797466320,-686.61,0.00043835,30]
[310892429,1704797466344,-565.23,0.00043835,30]
[310892430,1704797466372,-789.74,0.00043835,30]
[310892431,1704797466619,-500.0,0.00043835,30]
[310892432,1704797466648,-500.0,0.00043835,30]
[310892433,1704797466674,-858.89,0.00043835,30]
[310892434,1704797466703,-500.0,0.00043835,30]
[310892435,1704797466737,-934.05,0.00043835,30]
[310892436,1704797466762,-2060.33,0.00043835,30]
[310892437,1704797466788,-500.0,0.00043835,30]
[310892438,1704797466813,-500.0,0.00043835,30]
[310892439,1704797466838,-1354.8,0.00043835,30]
[310892440,1704797466862,-1116.33,0.00043835,30]
[310892441,1704797466889,-864.6,0.00043835,30]
[310892442,1704797466917,-2109.15,0.00043835,30]
[310892443,1704797466944,-407.57948653,0.00043835,30]
[310892444,1704797466972,-500.0,0.00043835,30]
[310892445,1704797467000,-1462.17,0.00043835,30]
[310892446,1704797467029,-500.0,0.00043835,30]
[310892447,1704797467061,-500.0,0.00043835,30]
[310892448,1704797467089,-1118.22,0.00043835,30]
[310892449,1704797467117,-500.0,0.00043835,30]
[310892450,1704797467144,-500.0,0.00043835,30]
[310892451,1704797467182,-500.0,0.00043835,30]
[310892452,1704797467212,-500.0,0.00043835,30]
[310892453,1704797467238,-500.0,0.00043835,30]
[310892454,1704797467262,-500.0,0.00043835,30]
[310892455,1704797467291,-500.0,0.00043835,30]
[310892456,1704797467315,-500.0,0.00043835,30]
[310892457,1704797467339,-579.21,0.00043835,30]
[310892458,1704797467363,-500.0,0.00043835,30]
[310892459,1704797467387,-500.0,0.00043835,30]
[310892460,1704797467412,-500.0,0.00043835,30]
[310892461,1704797467437,-250.0,0.00043835,30]
[310892462,1704797467465,-1162.45,0.00043835,30]
[310892463,1704797467494,-1387.5,0.00043835,30]
[310892464,1704797467533,-220.20707076,0.00043835,30]
[310892465,1704797467562,-500.0,0.00043835,30]
[310892466,1704797467601,-500.0,0.00043835,30]
[310892467,1704797467645,-1458.58,0.00043835,30]
[310892468,1704797467673,-1458.58,0.00043835,30]
[310892469,1704797467698,-1458.58,0.00043835,30]
[310892470,1704797467723,-1458.58,0.00043835,30]
[310892471,1704797467748,-1458.58,0.00043835,30]
[310892472,1704797467773,-779.27,0.00043835,30]
[310892473,1704797467798,-1458.58,0.00043835,30]
[310892474,1704797467823,-1458.58,0.00043835,30]
[310892475,1704797467849,-1458.58,0.00043835,30]
[310892476,1704797467874,-1458.58,0.00043835,30]
[310892477,1704797467902,-1514.35,0.00043835,30]
[310892478,1704797467928,-500.0,0.00043835,30]
[310892479,1704797467953,-500.0,0.00043835,30]
[310892480,1704797467979,-500.0,0.00043835,30]
[310892481,1704797468006,-1458.58,0.00043835,30]
[310892482,1704797468030,-1458.58,0.00043835,30]
[310892483,1704797468056,-1458.58,0.00043835,30]
[310892484,1704797468080,-1458.58,0.00043835,30]
[310892485,1704797468103,-500.0,0.00043835,30]
[310892486,1704797468126,-1458.58,0.00043835,30]
[310892487,1704797468155,-500.0,0.00043835,30]
[310892488,1704797468178,-1458.58,0.00043835,30]
[310892489,1704797468201,-1458.58,0.00043835,30]
[310892490,1704797468223,-1458.58,0.00043835,30]
[310892491,1704797468246,-1458.58,0.00043835,30]
[310892492,1704797468267,-1458.58,0.00043835,30]
[310892493,1704797468289,-1458.58,0.00043835,30]
[310892494,1704797468311,-1458.58,0.00043835,30]
[310892495,1704797468334,-1458.58,0.00043835,30]
[310892496,1704797468365,-1455.5,0.00043835,30]
[310892497,1704797468388,-1458.58,0.00043835,30]
[310892498,1704797468411,-814.01,0.00043835,30]
[310892499,1704797468433,-1458.74010822,0.00043835,30]
[310892500,1704797468454,-508.69516931,0.00043835,30]
[310892501,1704797468477,-1286.96,0.00043835,30]
[310892502,1704797468499,-500.0,0.00043835,30]
[310892503,1704797468522,-509.11,0.00043835,30]
[310892504,1704797468545,-500.0,0.00043835,30]
[310892505,1704797468568,-500.0,0.00043835,30]
[310892506,1704797468590,-500.0,0.00043835,30]
[310892507,1704797468613,-500.0,0.00043835,30]
[310892508,1704797468638,-1008.72,0.00043835,30]
[310892509,1704797468662,-500.0,0.00043835,30]
[310892510,1704797468686,-752.19,0.00043835,30]
[310892511,1704797468709,-500.0,0.00043835,30]
[310892512,1704797468731,-500.0,0.00043835,30]
[310892513,1704797468755,-598.01,0.00043835,30]
[310892514,1704797468778,-674.97,0.00043835,30]
[310892515,1704797468799,-500.0,0.00043835,30]
[310892516,1704797468823,-500.0,0.00043835,30]
[310892517,1704797468846,-500.0,0.00043835,30]
[310892518,1704797468874,-681.63,0.00043835,30]
[310892519,1704797468905,-500.0,0.00043835,30]
[310892520,1704797468936,-500.0,0.00043835,30]
[310892521,1704797468967,-691.22,0.00043835,30]
[310892522,1704797468993,-500.0,0.00043835,30]
[310892523,1704797469026,-500.0,0.00043835,30]
[310892524,1704797469058,-500.0,0.00043835,30]
[310892525,1704797469082,-819.8,0.00043835,30]
[310892526,1704797469105,-500.0,0.00043835,30]
[310892527,1704797469132,-695.4,0.00043835,30]
[310892528,1704797469165,-500.0,0.00043835,30]
[310892529,1704797469203,-506.03021756,0.00043835,30]
[310892530,1704797469229,-500.0,0.00043835,30]
[310892531,1704797469254,-614.49,0.00043835,30]
[310892532,1704797469276,-532.06659214,0.00043835,30]
[310892533,1704797469299,-1352.88,0.00043835,30]
[310892534,1704797469344,-895.47,0.00043835,30]
[310892535,1704797469367,-500.0,0.00043835,30]
[310892536,1704797469605,-500.0,0.00043835,30]
[310892537,1704797469632,-500.0,0.00043835,30]
[310892538,1704797469660,-1117.59,0.00043835,30]
[310892539,1704797469687,-500.0,0.00043835,30]
[310892540,1704797469724,-876.74,0.00043835,30]
[310892541,1704797469748,-500.0,0.00043835,30]
[310892542,1704797469773,-500.0,0.00043835,30]
[310892543,1704797469798,-765.29,0.00043835,30]
[310892544,1704797469825,-1095.36,0.00043835,30]
[310892545,1704797469849,-809.86,0.00043835,30]
[310892546,1704797469873,-500.0,0.00043835,30]
[310892547,1704797469908,-500.0,0.00043835,30]
[310892548,1704797469933,-1639.19,0.00043835,30]
[310892549,1704797469957,-543.30092794,0.00043835,30]
[310892550,1704797469980,-500.0,0.00043835,30]
[310892551,1704797470003,-500.0,0.00043835,30]
[310892552,1704797470027,-518.39419968,0.00043835,30]
[310892553,1704797470050,-500.0,0.00043835,30]
[310892554,1704797470074,-634.38,0.00043835,30]
[310892555,1704797470097,-500.0,0.00043835,30]
[310892556,1704797470120,-1662.24,0.00043835,30]
[310892557,1704797470148,-500.0,0.00043835,30]
[310892558,1704797470187,-500.0,0.00043835,30]
[310892559,1704797470231,-1241.59,0.00043835,30]
[310892560,1704797470258,-500.0,0.00043835,30]
[310892561,1704797470282,-1249.23,0.00043835,30]
[310892562,1704797470312,-500.0,0.00043835,30]
[310892563,1704797470351,-514.820809,0.00043835,30]
[310892564,1704797470376,-500.0,0.00043835,30]
[310892565,1704797470404,-500.0,0.00043835,30]
[310892566,1704797470427,-500.0,0.00043835,30]
[310892567,1704797470451,-500.0,0.00043835,30]
[310892568,1704797470473,-1556.29,0.00043835,30]
[310892569,1704797470497,-500.0,0.00043835,30]
[310892570,1704797470520,-1383.14,0.00043835,30]
[310892571,1704797470543,-500.0,0.00043835,30]
[310892572,1704797470568,-500.0,0.00043835,30]